[Event "*** Titled Tuesday Blitz"]
[Site "Chess.com"]
[Date "2020.05.05"]
[Round "7"]
[White "Lion-Al-Messi"]
[Black "Herracek"]
[Result "0-1"]
[WhiteElo "2428"]
[BlackElo "2600"]
[TimeControl "180+1"]
[EndTime "11:18:18 PDT"]
[Termination "Herracek won by resignation"]

1. d4 {[%clk 0:03:00.9]} 1... Nf6 {[%clk 0:02:59.4]} 2. Nf3 {[%clk 0:03:00.9]}
2... e6 {[%clk 0:02:59.7]} 3. Nc3 {[%clk 0:03:01.2]} 3... d5 {[%clk 0:02:59.1]}
4. Bg5 {[%clk 0:03:01.5]} 4... Bb4 {[%clk 0:02:58.2]} 5. e3 {[%clk 0:02:57.6]}
5... O-O {[%clk 0:02:57]} 6. Bd3 {[%clk 0:02:57.6]} 6... h6 {[%clk 0:02:57.3]}
7. Bh4 {[%clk 0:02:56.4]} 7... c5 {[%clk 0:02:55.9]} 8. O-O {[%clk 0:02:53.2]}
8... cxd4 {[%clk 0:02:55]} 9. exd4 {[%clk 0:02:52.1]} 9... Bxc3 {[%clk
0:02:54.9]} 10. bxc3 {[%clk 0:02:51.9]} 10... Nbd7 {[%clk 0:02:50.4]} 11. Ne5
{[%clk 0:02:52]} 11... Qa5 {[%clk 0:02:30.7]} 12. Qf3 {[%clk 0:02:51.1]} 12...
Nxe5 {[%clk 0:02:25.6]} 13. dxe5 {[%clk 0:02:52]} 13... Nd7 {[%clk 0:02:25]} 14.
Be7 {[%clk 0:02:51.9]} 14... Nxe5 {[%clk 0:02:13.1]} 15. Qg3 {[%clk 0:02:51.1]}
15... Nxd3 {[%clk 0:01:43.2]} 16. Bxf8 {[%clk 0:02:49.7]} 16... Kxf8 {[%clk
0:01:44]} 17. cxd3 {[%clk 0:02:48.7]} 17... Qxc3 {[%clk 0:01:35.3]} 18. Rac1
{[%clk 0:02:48.3]} 18... Qf6 {[%clk 0:01:22.9]} 19. Rc7 {[%clk 0:02:48.1]} 19...
b6 {[%clk 0:01:23.1]} 20. Qd6+ {[%clk 0:02:45.8]} 20... Kg8 {[%clk 0:01:23]} 21.
Qc6 {[%clk 0:02:46.4]} 21... Qd8 {[%clk 0:01:22.1]} 22. Rc1 {[%clk 0:02:44.3]}
22... Ba6 {[%clk 0:01:22.2]} 23. Rd7 {[%clk 0:02:37]} 23... Qe8 {[%clk
0:01:22.2]} 24. d4 {[%clk 0:02:18.9]} 24... Bc4 {[%clk 0:01:12.1]} 25. Rc7
{[%clk 0:02:16]} 25... Qxc6 {[%clk 0:01:10.3]} 26. Rxc6 {[%clk 0:02:16.9]} 26...
Bxa2 {[%clk 0:01:10.7]} 27. Rc8+ {[%clk 0:02:16.8]} 27... Rxc8 {[%clk 0:01:10]}
28. Rxc8+ {[%clk 0:02:17.7]} 28... Kh7 {[%clk 0:01:10.6]} 29. Ra8 {[%clk
0:02:09.4]} 29... a5 {[%clk 0:01:08.9]} 30. Ra6 {[%clk 0:02:09.5]} 30... Bc4
{[%clk 0:01:02.8]} 31. Rxb6 {[%clk 0:02:09.7]} 31... a4 {[%clk 0:01:03.3]} 32.
Rb7 {[%clk 0:02:10.1]} 32... a3 {[%clk 0:00:45.5]} 33. Rxf7 {[%clk 0:02:09.4]}
33... a2 {[%clk 0:00:45.8]} 34. Ra7 {[%clk 0:02:09.3]} 34... e5 {[%clk
0:00:46.3]} 35. dxe5 {[%clk 0:02:07.7]} 35... d4 {[%clk 0:00:46.9]} 36. e6
{[%clk 0:02:00.5]} 36... d3 {[%clk 0:00:47.1]} 37. Rxa2 {[%clk 0:00:56.6]} 37...
Bxa2 {[%clk 0:00:44.1]} 38. Kf1 {[%clk 0:00:56.7]} 38... Bxe6 {[%clk 0:00:43.9]}
39. Ke1 {[%clk 0:00:56.8]} 39... Kg6 {[%clk 0:00:38.6]} 40. Kd2 {[%clk
0:00:56.6]} 40... Bc4 {[%clk 0:00:39.2]} 41. Ke3 {[%clk 0:00:53.9]} 41... Kf5
{[%clk 0:00:40.1]} 42. h3 {[%clk 0:00:53.5]} 42... h5 {[%clk 0:00:40.2]} 43. g3
{[%clk 0:00:52.2]} 43... g5 {[%clk 0:00:39.9]} 44. f3 {[%clk 0:00:52]} 44... h4
{[%clk 0:00:37.1]} 45. g4+ {[%clk 0:00:45.3]} 45... Ke5 {[%clk 0:00:37.1]} 46.
f4+ {[%clk 0:00:44.9]} 46... gxf4+ {[%clk 0:00:37.1]} 47. Kd2 {[%clk 0:00:45.1]}
47... Ke4 {[%clk 0:00:35.9]} 48. Ke1 {[%clk 0:00:42.2]} 48... Be6 {[%clk
0:00:36.4]} 0-1

[Event "*** Titled Tuesday Blitz"]
[Site "Chess.com"]
[Date "2020.05.05"]
[Round "7"]
[White "LamaChampetre"]
[Black "Charlottemillard17"]
[Result "1-0"]
[WhiteElo "2154"]
[BlackElo "1428"]
[TimeControl "180+1"]
[EndTime "11:18:22 PDT"]
[Termination "LamaChampetre won on time"]

1. d4 {[%clk 0:03:00.9]} 1... d5 {[%clk 0:02:58.7]} 2. c4 {[%clk 0:03:01.2]}
2... e6 {[%clk 0:02:56.7]} 3. Nf3 {[%clk 0:03:01.7]} 3... Nf6 {[%clk 0:02:55.8]}
4. g3 {[%clk 0:03:02.1]} 4... Be7 {[%clk 0:02:53]} 5. Bg2 {[%clk 0:03:02.5]}
5... c6 {[%clk 0:02:52.3]} 6. O-O {[%clk 0:03:01.9]} 6... Nbd7 {[%clk
0:02:51.9]} 7. Nbd2 {[%clk 0:03:02.2]} 7... O-O {[%clk 0:02:51.4]} 8. Qc2 {[%clk
0:03:02.7]} 8... h6 {[%clk 0:02:48.9]} 9. e4 {[%clk 0:03:02.3]} 9... b6 {[%clk
0:02:44.4]} 10. e5 {[%clk 0:03:00.3]} 10... Nh7 {[%clk 0:02:34.1]} 11. cxd5
{[%clk 0:02:59.1]} 11... exd5 {[%clk 0:02:33.1]} 12. Re1 {[%clk 0:02:57.4]}
12... Bb7 {[%clk 0:02:29.8]} 13. Nf1 {[%clk 0:02:55.1]} 13... Rc8 {[%clk
0:02:01.9]} 14. h4 {[%clk 0:02:52.4]} 14... c5 {[%clk 0:01:54.4]} 15. Qb3 {[%clk
0:02:50.1]} 15... Re8 {[%clk 0:01:40.7]} 16. Bd2 {[%clk 0:02:36.2]} 16... Nhf8
{[%clk 0:01:36.5]} 17. Rad1 {[%clk 0:02:35.1]} 17... c4 {[%clk 0:01:25.1]} 18.
Qc2 {[%clk 0:02:34.1]} 18... Ne6 {[%clk 0:01:23.7]} 19. Ne3 {[%clk 0:02:33.1]}
19... b5 {[%clk 0:01:12.8]} 20. Nf5 {[%clk 0:02:32.1]} 20... Ndf8 {[%clk
0:01:00.4]} 21. Nh2 {[%clk 0:02:30.2]} 21... Ng6 {[%clk 0:00:56.1]} 22. Ng4
{[%clk 0:02:26.1]} 22... Bc6 {[%clk 0:00:46]} 23. Bxh6 {[%clk 0:02:25.6]} 23...
gxh6 {[%clk 0:00:43.7]} 24. Ngxh6+ {[%clk 0:02:25.5]} 24... Kh7 {[%clk
0:00:43.2]} 25. Nxf7 {[%clk 0:02:23.6]} 25... Qd7 {[%clk 0:00:40.2]} 26. h5
{[%clk 0:02:23]} 26... Ngf8 {[%clk 0:00:19.6]} 27. Nxe7+ {[%clk 0:01:58.2]}
27... Kg7 {[%clk 0:00:13.6]} 28. Nd6 {[%clk 0:01:36.1]} 28... Rxe7 {[%clk
0:00:12.5]} 29. h6+ {[%clk 0:01:26.8]} 29... Kg8 {[%clk 0:00:11.3]} 30. Nxc8
{[%clk 0:01:17.7]} 30... Qxc8 {[%clk 0:00:10.2]} 31. f4 {[%clk 0:01:17.4]} 31...
Rh7 {[%clk 0:00:08.8]} 32. Kf2 {[%clk 0:01:17]} 32... Rxh6 {[%clk 0:00:08.1]}
33. Rh1 {[%clk 0:01:16.1]} 33... Rxh1 {[%clk 0:00:04.6]} 34. Rxh1 {[%clk
0:01:13.9]} 34... Nxd4 {[%clk 0:00:04.4]} 35. Qd1 {[%clk 0:01:11]} 35... Nf5
{[%clk 0:00:03]} 36. Qg4+ {[%clk 0:01:09.7]} 1-0

[Event "*** Titled Tuesday Blitz"]
[Site "Chess.com"]
[Date "2020.05.05"]
[Round "7"]
[White "drinbet"]
[Black "FMOlexandrProhorov"]
[Result "1-0"]
[WhiteElo "2309"]
[BlackElo "2066"]
[TimeControl "180+1"]
[EndTime "11:18:25 PDT"]
[Termination "drinbet won on time"]

1. e4 {[%clk 0:03:00.9]} 1... c5 {[%clk 0:02:57.9]} 2. Nf3 {[%clk 0:03:00]} 2...
Nc6 {[%clk 0:02:55.8]} 3. d4 {[%clk 0:02:58.3]} 3... cxd4 {[%clk 0:02:55.9]} 4.
Nxd4 {[%clk 0:02:58.8]} 4... Nf6 {[%clk 0:02:56.4]} 5. Nc3 {[%clk 0:02:58.2]}
5... d6 {[%clk 0:02:56.7]} 6. Bg5 {[%clk 0:02:57.5]} 6... Qa5 {[%clk 0:02:56.3]}
7. Bxf6 {[%clk 0:02:53.4]} 7... gxf6 {[%clk 0:02:55.9]} 8. Qd2 {[%clk
0:02:51.8]} 8... Bd7 {[%clk 0:02:52.5]} 9. Nb3 {[%clk 0:02:46.3]} 9... Qb6
{[%clk 0:02:41.1]} 10. O-O-O {[%clk 0:02:45.2]} 10... e6 {[%clk 0:02:39]} 11.
Kb1 {[%clk 0:02:44.3]} 11... O-O-O {[%clk 0:02:37.5]} 12. f4 {[%clk 0:02:44.3]}
12... h5 {[%clk 0:02:34.2]} 13. g3 {[%clk 0:02:40.4]} 13... Na5 {[%clk
0:02:09.5]} 14. Be2 {[%clk 0:02:34]} 14... Nxb3 {[%clk 0:02:01.4]} 15. axb3
{[%clk 0:02:32.5]} 15... Bc6 {[%clk 0:01:56.8]} 16. Rhf1 {[%clk 0:02:19]} 16...
Bg7 {[%clk 0:01:44]} 17. f5 {[%clk 0:02:15.3]} 17... Bh6 {[%clk 0:01:39.2]} 18.
Qd3 {[%clk 0:02:14.3]} 18... e5 {[%clk 0:01:25.8]} 19. Bxh5 {[%clk 0:02:07.3]}
19... Bg5 {[%clk 0:01:21.6]} 20. Bxf7 {[%clk 0:02:05.5]} 20... Rxh2 {[%clk
0:01:19.8]} 21. Bd5 {[%clk 0:02:04.5]} 21... Qe3 {[%clk 0:00:55.4]} 22. Qc4
{[%clk 0:01:53.1]} 22... Qc5 {[%clk 0:00:49.3]} 23. Qxc5 {[%clk 0:01:42.4]}
23... dxc5 {[%clk 0:00:48.7]} 24. Bxc6 {[%clk 0:01:42.2]} 24... bxc6 {[%clk
0:00:45.9]} 25. Rxd8+ {[%clk 0:01:41]} 25... Kxd8 {[%clk 0:00:45.4]} 26. Rd1+
{[%clk 0:01:41]} 26... Kc7 {[%clk 0:00:43.6]} 27. Rd3 {[%clk 0:01:40.9]} 27...
Rh1+ {[%clk 0:00:41.4]} 28. Ka2 {[%clk 0:01:40.4]} 28... Re1 {[%clk 0:00:41.3]}
29. Na4 {[%clk 0:01:07.9]} 29... Rxe4 {[%clk 0:00:38.7]} 30. Nxc5 {[%clk
0:01:07.6]} 30... Rg4 {[%clk 0:00:27.8]} 31. c4 {[%clk 0:00:58.4]} 31... e4
{[%clk 0:00:18]} 32. Rd7+ {[%clk 0:00:58.4]} 32... Kb8 {[%clk 0:00:17.6]} 33.
Re7 {[%clk 0:00:55.7]} 33... e3 {[%clk 0:00:16.9]} 34. Na6+ {[%clk 0:00:42.6]}
34... Ka8 {[%clk 0:00:15]} 35. Nb4 {[%clk 0:00:39.9]} 35... Rxg3 {[%clk
0:00:05.4]} 36. Nxc6 {[%clk 0:00:39.6]} 1-0

[Event "*** Titled Tuesday Blitz"]
[Site "Chess.com"]
[Date "2020.05.05"]
[Round "7"]
[White "LiamVrolijk"]
[Black "elohunter1999"]
[Result "0-1"]
[WhiteElo "2738"]
[BlackElo "2542"]
[TimeControl "180+1"]
[EndTime "11:18:26 PDT"]
[Termination "elohunter1999 won by resignation"]

1. d4 {[%clk 0:03:00.9]} 1... Nf6 {[%clk 0:02:59.2]} 2. c4 {[%clk 0:03:01.5]}
2... e6 {[%clk 0:02:58.9]} 3. Nf3 {[%clk 0:03:02]} 3... d5 {[%clk 0:02:58.4]} 4.
g3 {[%clk 0:03:02.2]} 4... dxc4 {[%clk 0:02:53.6]} 5. Bg2 {[%clk 0:03:02]} 5...
c5 {[%clk 0:02:53.2]} 6. O-O {[%clk 0:03:00.3]} 6... Nc6 {[%clk 0:02:52.9]} 7.
dxc5 {[%clk 0:02:58.8]} 7... Qxd1 {[%clk 0:02:52]} 8. Rxd1 {[%clk 0:02:58.5]}
8... Bxc5 {[%clk 0:02:52.3]} 9. Nbd2 {[%clk 0:02:55.2]} 9... c3 {[%clk
0:02:51.5]} 10. bxc3 {[%clk 0:02:56.1]} 10... O-O {[%clk 0:02:50.3]} 11. Ne1
{[%clk 0:02:50.2]} 11... Be7 {[%clk 0:02:40.1]} 12. Nd3 {[%clk 0:02:49.5]} 12...
Bd7 {[%clk 0:02:37.5]} 13. Nc4 {[%clk 0:02:43.1]} 13... Rfd8 {[%clk 0:02:27.9]}
14. Rb1 {[%clk 0:02:40.2]} 14... b6 {[%clk 0:02:20.4]} 15. Nde5 {[%clk
0:02:33.4]} 15... Nxe5 {[%clk 0:02:17.6]} 16. Nxe5 {[%clk 0:02:34.3]} 16... Ba4
{[%clk 0:02:11.2]} 17. Rxd8+ {[%clk 0:01:32.4]} 17... Rxd8 {[%clk 0:02:12.1]}
18. Bg5 {[%clk 0:00:52.1]} 18... h6 {[%clk 0:02:06]} 19. Bf4 {[%clk 0:00:51.6]}
19... Nd5 {[%clk 0:01:43.6]} 20. Bxd5 {[%clk 0:00:51.2]} 20... Rxd5 {[%clk
0:01:42.4]} 21. c4 {[%clk 0:00:51.8]} 21... Rc5 {[%clk 0:01:32.3]} 22. Rc1
{[%clk 0:00:48.4]} 22... g5 {[%clk 0:01:29.3]} 23. Nd3 {[%clk 0:00:45.7]} 23...
gxf4 {[%clk 0:01:27.4]} 24. Nxc5 {[%clk 0:00:44.8]} 24... Bxc5 {[%clk
0:01:23.3]} 25. gxf4 {[%clk 0:00:45.7]} 25... Kg7 {[%clk 0:01:17]} 26. Kg2
{[%clk 0:00:46]} 26... Kf6 {[%clk 0:01:16.4]} 27. e4 {[%clk 0:00:45.4]} 27... e5
{[%clk 0:01:14.7]} 28. f5 {[%clk 0:00:36.3]} 28... Ke7 {[%clk 0:01:05.1]} 29.
Kf3 {[%clk 0:00:34.9]} 29... f6 {[%clk 0:01:00.9]} 30. Kg4 {[%clk 0:00:35]}
30... Be8 {[%clk 0:01:00.1]} 31. Rg1 {[%clk 0:00:31.9]} 31... Bxf2 {[%clk
0:00:58.3]} 32. Rg2 {[%clk 0:00:26.9]} 32... Bd4 {[%clk 0:00:54]} 33. Kh4 {[%clk
0:00:26.2]} 33... Bc6 {[%clk 0:00:50.6]} 34. Rg4 {[%clk 0:00:22.7]} 34... Be8
{[%clk 0:00:48.4]} 35. Rg7+ {[%clk 0:00:22.8]} 35... Bf7 {[%clk 0:00:48.4]} 36.
Kg3 {[%clk 0:00:18.6]} 36... Kf8 {[%clk 0:00:46.8]} 37. Rg4 {[%clk 0:00:19.2]}
37... Bxc4 {[%clk 0:00:46.4]} 38. Rg6 {[%clk 0:00:19.4]} 38... Ke7 {[%clk
0:00:44.5]} 39. Rxh6 {[%clk 0:00:18.8]} 39... Bxa2 {[%clk 0:00:44.5]} 40. Rg6
{[%clk 0:00:19.3]} 40... Bf7 {[%clk 0:00:44.2]} 41. Rg7 {[%clk 0:00:16.2]} 41...
a5 {[%clk 0:00:44.6]} 42. Kf3 {[%clk 0:00:16.1]} 42... a4 {[%clk 0:00:44.4]} 43.
h4 {[%clk 0:00:16.8]} 43... a3 {[%clk 0:00:44.4]} 0-1

[Event "*** Titled Tuesday Blitz"]
[Site "Chess.com"]
[Date "2020.05.05"]
[Round "7"]
[White "SARGISMV"]
[Black "Usurpov"]
[Result "1-0"]
[WhiteElo "2454"]
[BlackElo "2452"]
[TimeControl "180+1"]
[EndTime "11:18:29 PDT"]
[Termination "SARGISMV won by resignation"]

1. Nf3 {[%clk 0:03:00.9]} 1... Nf6 {[%clk 0:02:58.5]} 2. c4 {[%clk 0:03:01.8]}
2... g6 {[%clk 0:02:58.9]} 3. Nc3 {[%clk 0:03:02.7]} 3... d5 {[%clk 0:02:59.3]}
4. cxd5 {[%clk 0:03:02.7]} 4... Nxd5 {[%clk 0:03:00.2]} 5. Qa4+ {[%clk
0:03:02.9]} 5... Nc6 {[%clk 0:02:59]} 6. Ne5 {[%clk 0:02:56.2]} 6... Qd6 {[%clk
0:02:58.1]} 7. Nxc6 {[%clk 0:02:55.8]} 7... Qxc6 {[%clk 0:02:58.2]} 8. Qd4
{[%clk 0:02:47.8]} 8... Nf6 {[%clk 0:02:56.7]} 9. e4 {[%clk 0:02:47.6]} 9... a6
{[%clk 0:02:52.3]} 10. e5 {[%clk 0:02:28.1]} 10... Nd7 {[%clk 0:02:31.6]} 11. e6
{[%clk 0:02:24.8]} 11... Qxe6+ {[%clk 0:02:30.2]} 12. Be2 {[%clk 0:02:18.9]}
12... Qe5 {[%clk 0:02:15.3]} 13. Qh4 {[%clk 0:02:06.5]} 13... Bg7 {[%clk
0:02:10.6]} 14. O-O {[%clk 0:02:04.2]} 14... O-O {[%clk 0:02:03.1]} 15. d4
{[%clk 0:01:48]} 15... Qxd4 {[%clk 0:01:42.3]} 16. Qxe7 {[%clk 0:01:46]} 16...
Qc5 {[%clk 0:01:35.9]} 17. Qh4 {[%clk 0:01:35.2]} 17... Ne5 {[%clk 0:01:13.7]}
18. Be3 {[%clk 0:01:14]} 18... Qa5 {[%clk 0:01:10.4]} 19. Rfd1 {[%clk
0:01:10.5]} 19... Be6 {[%clk 0:00:59.4]} 20. Ne4 {[%clk 0:01:06.2]} 20... f6
{[%clk 0:00:37.7]} 21. Nc5 {[%clk 0:00:36]} 21... g5 {[%clk 0:00:16.2]} 22. Qe4
{[%clk 0:00:20.6]} 22... f5 {[%clk 0:00:15.9]} 23. Qc2 {[%clk 0:00:18.2]} 23...
Bd5 {[%clk 0:00:08.7]} 24. Rxd5 {[%clk 0:00:17.3]} 24... Qb6 {[%clk 0:00:08.3]}
25. Rad1 {[%clk 0:00:15.1]} 25... Qg6 {[%clk 0:00:07.4]} 26. Nd7 {[%clk
0:00:14.2]} 26... Nxd7 {[%clk 0:00:06.6]} 27. Rxd7 {[%clk 0:00:15.1]} 27... Kh8
{[%clk 0:00:06.9]} 28. Bd4 {[%clk 0:00:14.6]} 28... Bxd4 {[%clk 0:00:05.7]} 29.
R1xd4 {[%clk 0:00:15.5]} 1-0

[Event "*** Titled Tuesday Blitz"]
[Site "Chess.com"]
[Date "2020.05.05"]
[Round "7"]
[White "Pittiplatsh"]
[Black "LittlePeasant"]
[Result "0-1"]
[WhiteElo "2531"]
[BlackElo "2757"]
[TimeControl "180+1"]
[EndTime "11:18:30 PDT"]
[Termination "LittlePeasant won by resignation"]

1. e4 {[%clk 0:02:58.2]} 1... c6 {[%clk 0:02:59.7]} 2. d4 {[%clk 0:02:56.4]}
2... d5 {[%clk 0:03:00.3]} 3. e5 {[%clk 0:02:55.6]} 3... Bf5 {[%clk 0:03:00.3]}
4. h4 {[%clk 0:02:54.3]} 4... h5 {[%clk 0:03:00.4]} 5. Bd3 {[%clk 0:02:51]} 5...
Bxd3 {[%clk 0:03:00.5]} 6. Qxd3 {[%clk 0:02:50.9]} 6... e6 {[%clk 0:03:00.6]} 7.
Bg5 {[%clk 0:02:50.7]} 7... Qa5+ {[%clk 0:03:00.1]} 8. Nd2 {[%clk 0:02:50.2]}
8... Qa6 {[%clk 0:03:00.2]} 9. c4 {[%clk 0:02:24.2]} 9... Bb4 {[%clk 0:02:55.3]}
10. b3 {[%clk 0:02:23.6]} 10... Ne7 {[%clk 0:02:38.5]} 11. Ne2 {[%clk
0:02:23.2]} 11... Nf5 {[%clk 0:02:35.6]} 12. Ng3 {[%clk 0:02:21.5]} 12... Nxg3
{[%clk 0:02:09.4]} 13. fxg3 {[%clk 0:02:21.4]} 13... Nd7 {[%clk 0:02:09]} 14.
O-O {[%clk 0:02:18.9]} 14... O-O {[%clk 0:02:08.9]} 15. a3 {[%clk 0:02:12.7]}
15... Bxd2 {[%clk 0:02:05.3]} 16. Bxd2 {[%clk 0:02:11.3]} 16... c5 {[%clk
0:01:52.7]} 17. dxc5 {[%clk 0:01:55.6]} 17... Nxc5 {[%clk 0:01:44.2]} 18. Qe3
{[%clk 0:01:53.4]} 18... Ne4 {[%clk 0:01:41.3]} 19. Bb4 {[%clk 0:01:53.3]} 19...
Rfd8 {[%clk 0:01:34]} 20. Qf3 {[%clk 0:01:45.7]} 20... Rd7 {[%clk 0:01:32]} 21.
Rad1 {[%clk 0:01:23.8]} 21... Qc6 {[%clk 0:01:14.4]} 22. cxd5 {[%clk 0:01:15.4]}
22... exd5 {[%clk 0:01:13]} 23. Kh2 {[%clk 0:01:03.8]} 23... g6 {[%clk 0:01:08]}
24. Qf4 {[%clk 0:00:39.2]} 24... Re8 {[%clk 0:01:03.7]} 25. Rc1 {[%clk
0:00:23.8]} 25... Qe6 {[%clk 0:01:02.5]} 26. Rfd1 {[%clk 0:00:24.3]} 26... Qxe5
{[%clk 0:00:54]} 27. Qxe5 {[%clk 0:00:24.5]} 27... Rxe5 {[%clk 0:00:54.9]} 28.
Rc8+ {[%clk 0:00:24.8]} 28... Kh7 {[%clk 0:00:46.5]} 29. a4 {[%clk 0:00:17.7]}
29... d4 {[%clk 0:00:36.6]} 30. Ba3 {[%clk 0:00:17.9]} 30... Nf2 {[%clk
0:00:36.1]} 31. Rf1 {[%clk 0:00:14.6]} 31... Ng4+ {[%clk 0:00:35.9]} 32. Kg1
{[%clk 0:00:14.6]} 32... Re2 {[%clk 0:00:33.3]} 33. Bc1 {[%clk 0:00:12.8]} 33...
d3 {[%clk 0:00:20.3]} 0-1

[Event "*** Titled Tuesday Blitz"]
[Site "Chess.com"]
[Date "2020.05.05"]
[Round "7"]
[White "Oleksandr_Bortnyk"]
[Black "Onischuk_V"]
[Result "1-0"]
[WhiteElo "2997"]
[BlackElo "2749"]
[TimeControl "180+1"]
[EndTime "11:18:31 PDT"]
[Termination "Oleksandr_Bortnyk won on time"]

1. d4 {[%clk 0:03:00.9]} 1... d6 {[%clk 0:03:00]} 2. Nc3 {[%clk 0:03:01.3]} 2...
g6 {[%clk 0:02:59.6]} 3. Bf4 {[%clk 0:03:01.8]} 3... Bg7 {[%clk 0:02:59.6]} 4.
e3 {[%clk 0:03:02.5]} 4... Nf6 {[%clk 0:02:56.8]} 5. h4 {[%clk 0:03:02.9]} 5...
Nc6 {[%clk 0:02:54.4]} 6. h5 {[%clk 0:02:59.7]} 6... Nxh5 {[%clk 0:02:53.8]} 7.
Rxh5 {[%clk 0:03:00]} 7... gxh5 {[%clk 0:02:52.9]} 8. Qxh5 {[%clk 0:03:00.9]}
8... e6 {[%clk 0:02:52.3]} 9. Nf3 {[%clk 0:02:59.2]} 9... Qf6 {[%clk 0:02:47.7]}
10. Bd3 {[%clk 0:02:52.2]} 10... h6 {[%clk 0:02:42.3]} 11. Bg3 {[%clk
0:02:36.7]} 11... Qe7 {[%clk 0:02:34.5]} 12. O-O-O {[%clk 0:02:24.2]} 12... Bd7
{[%clk 0:02:33.3]} 13. Bh4 {[%clk 0:02:04.8]} 13... Bf6 {[%clk 0:02:30.3]} 14.
d5 {[%clk 0:02:05.7]} 14... Nb4 {[%clk 0:02:23.9]} 15. dxe6 {[%clk 0:02:04.6]}
15... Qxe6 {[%clk 0:01:57.7]} 16. Bc4 {[%clk 0:01:49.2]} 16... Qxc4 {[%clk
0:01:51.7]} 17. Bxf6 {[%clk 0:01:48.8]} 17... Rg8 {[%clk 0:01:48.6]} 18. Rd4
{[%clk 0:01:29]} 18... Qf1+ {[%clk 0:01:15]} 19. Kd2 {[%clk 0:01:07.4]} 19...
Qxf2+ {[%clk 0:01:10.6]} 20. Ne2 {[%clk 0:01:07.9]} 20... Bc6 {[%clk 0:00:41.8]}
21. Rxb4 {[%clk 0:01:04.2]} 21... Rxg2 {[%clk 0:00:40.9]} 22. Ne1 {[%clk
0:00:43.9]} 22... Qxf6 {[%clk 0:00:16.7]} 23. Nxg2 {[%clk 0:00:42.6]} 23... Bxg2
{[%clk 0:00:17.1]} 24. Qg4 {[%clk 0:00:18.5]} 24... Qg6 {[%clk 0:00:12.4]} 25.
Qh4 {[%clk 0:00:17.4]} 25... Bc6 {[%clk 0:00:06.8]} 26. Rg4 {[%clk 0:00:15.8]}
26... Qh7 {[%clk 0:00:06.5]} 27. Qf6 {[%clk 0:00:15.4]} 27... Bd5 {[%clk
0:00:04.6]} 28. Nf4 {[%clk 0:00:12.2]} 1-0

[Event "*** Titled Tuesday Blitz"]
[Site "Chess.com"]
[Date "2020.05.05"]
[Round "7"]
[White "Agnes66678"]
[Black "crackcubano"]
[Result "1/2-1/2"]
[WhiteElo "2422"]
[BlackElo "2602"]
[TimeControl "180+1"]
[EndTime "11:18:31 PDT"]
[Termination "Game drawn by repetition"]

1. d4 {[%clk 0:02:59.4]} 1... Nf6 {[%clk 0:02:59.5]} 2. c4 {[%clk 0:02:58.4]}
2... c5 {[%clk 0:02:59.2]} 3. d5 {[%clk 0:02:58.1]} 3... b5 {[%clk 0:02:59.7]}
4. cxb5 {[%clk 0:02:58]} 4... a6 {[%clk 0:03:00.3]} 5. bxa6 {[%clk 0:02:58.9]}
5... g6 {[%clk 0:02:59.8]} 6. Nc3 {[%clk 0:02:59.3]} 6... Bg7 {[%clk 0:02:59.9]}
7. g3 {[%clk 0:02:59.8]} 7... d6 {[%clk 0:02:58.8]} 8. Bg2 {[%clk 0:03:00.1]}
8... Nbd7 {[%clk 0:02:58.9]} 9. Nf3 {[%clk 0:03:00.5]} 9... Nb6 {[%clk
0:02:58.7]} 10. Nd2 {[%clk 0:02:43.8]} 10... O-O {[%clk 0:02:55.3]} 11. O-O
{[%clk 0:02:43.3]} 11... Bxa6 {[%clk 0:02:54.4]} 12. Rb1 {[%clk 0:02:43.4]}
12... Nfd7 {[%clk 0:02:50.2]} 13. Qc2 {[%clk 0:02:41.3]} 13... Bb7 {[%clk
0:02:10.2]} 14. e4 {[%clk 0:02:39.9]} 14... Ba6 {[%clk 0:02:04.7]} 15. Rd1
{[%clk 0:02:38]} 15... Ne5 {[%clk 0:02:04.2]} 16. Nf3 {[%clk 0:02:33.6]} 16...
Nxf3+ {[%clk 0:01:52.4]} 17. Bxf3 {[%clk 0:02:34.5]} 17... Nc4 {[%clk
0:01:52.4]} 18. b3 {[%clk 0:02:30.8]} 18... Qa5 {[%clk 0:01:50.3]} 19. Na4
{[%clk 0:02:16.3]} 19... Bb5 {[%clk 0:01:32.4]} 20. Be2 {[%clk 0:02:02.5]} 20...
Ne5 {[%clk 0:01:26.3]} 21. Bxb5 {[%clk 0:01:55.3]} 21... Qxb5 {[%clk 0:01:27.2]}
22. Kg2 {[%clk 0:01:55.6]} 22... f5 {[%clk 0:01:12]} 23. f4 {[%clk 0:01:50.4]}
23... Ng4 {[%clk 0:00:52]} 24. h3 {[%clk 0:01:47]} 24... Nf6 {[%clk 0:00:51.6]}
25. exf5 {[%clk 0:01:45.1]} 25... gxf5 {[%clk 0:00:46.3]} 26. Bb2 {[%clk
0:01:44.9]} 26... Rf7 {[%clk 0:00:19.9]} 27. Nc3 {[%clk 0:01:42.9]} 27... Qb7
{[%clk 0:00:15.2]} 28. a4 {[%clk 0:01:41.7]} 28... Qb4 {[%clk 0:00:13]} 29. Nb5
{[%clk 0:01:33.3]} 29... Ne4 {[%clk 0:00:12.2]} 30. Rbc1 {[%clk 0:01:13.8]}
30... Bxb2 {[%clk 0:00:09.3]} 31. Qxb2 {[%clk 0:01:13.8]} 31... Rg7 {[%clk
0:00:10.2]} 32. Rd3 {[%clk 0:01:13.1]} 32... Rxa4 {[%clk 0:00:09.2]} 33. Nc3
{[%clk 0:01:11]} 33... Nxc3 {[%clk 0:00:08.1]} 34. Rdxc3 {[%clk 0:01:05.2]}
34... Ra3 {[%clk 0:00:08.3]} 35. Qc2 {[%clk 0:01:01.6]} 35... Qa5 {[%clk
0:00:07.8]} 36. Qxf5 {[%clk 0:00:53.9]} 36... Ra2+ {[%clk 0:00:07.9]} 37. R1c2
{[%clk 0:00:53.7]} 37... Qxc3 {[%clk 0:00:07.3]} 38. Qc8+ {[%clk 0:00:51.2]}
38... Kf7 {[%clk 0:00:07.7]} 39. Qe6+ {[%clk 0:00:50.5]} 39... Kf8 {[%clk
0:00:08.3]} 40. Qc8+ {[%clk 0:00:50.1]} 40... Kf7 {[%clk 0:00:08.3]} 41. Qe6+
{[%clk 0:00:50.2]} 41... Kf8 {[%clk 0:00:08.6]} 42. Qc8+ {[%clk 0:00:48.8]}
42... Kf7 {[%clk 0:00:08.6]} 1/2-1/2